Cogmind - Beta 17 @@@ ROGUE MODE // 2026.07.26 @ 22:09:23 Player: aperiodic Result: Destroyed by Autobeam Turret with Autobeam Performance ------------- Evolutions (0) 0 Regions Visited (2) 400 Robots Destroyed (39) 195 Value Destroyed (777) 777 Prototype IDs (1) 20 Alien Tech Used (0) 0 Bonus (0) 0 TOTAL SCORE: 1392 Bonus ------- None Cogmind --------- Core Integrity 0/250 Matter 300/300 Energy 279/280 System Corruption 0% Temperature Cool (6) Movement Rolling (105) Ox1 Location -10/Subcaves Parts ------- > --- POWER (1) -------- Heavy Ion Engine > --- PROPULSION (2) --- Armored Wheel > --- UTILITY (2) ------ Heat Sink Seismic Detector > --- WEAPON (2) ------- Subdweller Laser Subdweller Beam Cannon > --- INVENTORY (5) ---- Utility Shielding Battle Cannon Subdweller Shrapnel Launcher Hammer Piercing Trap Peak State ------------ > --- POWER ------------ Heavy Ion Engine > --- PROPULSION ------- Armored Wheel Armored Wheel > --- UTILITY ---------- High-capacity Storage Unit Seismic Detector > --- WEAPON ----------- Spread Laser Spread Laser > --- INVENTORY -------- Heavy Ion Engine Light Treads Light Treads Wheel Wheel Armored Wheel Armored Wheel Flight Unit Heat Sink Medium Storage Unit Weight Redist. System Utility Shielding Light Armor Plating Beam Rifle Assault Rifle Assault Rifle Light Cannon Light Cannon Mining Laser Hammer [Rating: 15] Favorites ----------- Power Heavy Ion Engine Engine Heavy Ion Engine Propulsion Armored Wheel Treads Light Treads Wheel Armored Wheel Utility Seismic Detector Device Seismic Detector Storage High-capacity Storage Unit Protection Scrap Shield Weapon Hammer Energy Gun Spread Laser Energy Cannon Subdweller Beam Cannon Ballistic Gun Assault Rifle Ballistic Cannon Battle Cannon Special Weapon Mining Laser Impact Weapon Hammer Build | -11 -10 -10 ------- Run | Yrd Mat Sub Slots Evolved . | . . . Power . | . . . Propulsion . | . . . Utility . | . . . Weapon . | . . . Parts Attached 34 | 7 18 9 Power 2 | 1 1 . Engine 2 | 1 1 . Core . | . . . Reactor . | . . . Propulsion 11 | 2 7 2 Treads 2 | . 2 . Leg . | . . . Wheel 9 | 2 5 2 Hover . | . . . Flight . | . . . Utility 8 | 2 4 2 Device 3 | 1 2 . Storage 3 | 1 2 . Processor . | . . . Hackware . | . . . Protection 2 | . . 2 Artifact . | . . . Weapon 13 | 2 6 5 Energy Gun 7 | 1 4 2 Energy Cannon 1 | . . 1 Ballistic Gun 2 | 1 . 1 Ballistic Cannon 1 | . . 1 Launcher . | . . . Special Weapon 1 | . 1 . Impact Weapon 1 | . 1 . Slashing Weapon . | . . . Piercing Weapon . | . . . Special Melee Weapon . | . . . Unidentified Prototypes 1 | . 1 . Parts Lost 3 | . 1 2 Power 1 | . 1 . Propulsion 1 | . . 1 Utility 1 | . . 1 Weapon . | . . . Highest Loss Streak 1 | . 1 1 To Critical Strikes . | . . . Average Backups 6 | 4 11 4 Power . | . 1 . Propulsion 1 | 2 5 . Utility 1 | . 2 1 Weapon 3 | 1 3 3 Tool/Special . | . . . Unused Backups 18 | . 2 16 Power 2 | . 1 1 Propulsion 6 | . 1 5 Utility 3 | . . 3 Weapon 7 | . . 7 Tool/Special . | . . . Average Slot Usage (%) 95 | . 99 93 Engine 14 | . 14 14 Treads 1 | . 5 . Wheel 26 | . 22 27 Device 15 | . 14 15 Storage 4 | . 14 . Protection 4 | . . 5 Energy Gun 12 | . 25 6 Energy Cannon 1 | . . 2 Ballistic Cannon 4 | . . 6 Impact Weapon 9 | . 1 12 Peak Build Rating 15 | 7 13 15 Average Rating 12 | 6 11 12 On Entrance 6 | . 7 13 Avg Prop Armor Cover (%) 5 | . 5 . Naked Turns . | . . . Heaviest Build 55 | 13 55 55 Greatest Support 40 | 32 40 24 Greatest Overweight (x) 2 | 2 2 2 Average Overweight (x) . | . 1 . Largest Inventory Capacity 20 | 8 20 20 Average Capacity 8 | 7 17 5 Most Carried 20 | 8 20 20 Average Carried 7 | 4 11 5 Final Capacity 20 | 8 20 5 Final Carried 20 | 8 20 5 Class Distribution -------------------- 99% | Mutant Dominant Class ---------------- Mutant | -10/Materials Mutant | -10/Subcaves Resources | -11 -10 -10 ----------- Run | Yrd Mat Sub Matter Collected 1138 | 297 509 332 Remotely . | . . . Salvage Created 1123 | 170 560 393 Parts 68 | 14 36 18 Haulers Intercepted 2 | . 2 . Recyclers Shooed 4 | 1 3 . Parts Field Recycled . | . . . Retrieved Matter . | . . . Parts Self-Destructed 14 | . . 14 Prevented . | . . . Parts Restored . | . . . Kills | -11 -10 -10 ------- Run | Yrd Mat Sub Combat Hostiles Destroyed 23 | . 12 11 Guns 17 | . 12 5 Cannons 6 | . . 6 Classes Destroyed 10 | 3 6 1 Worker 3 | 2 1 . Builder 2 | . 2 . Tunneler 2 | 2 . . Hauler 2 | . 2 . Recycler 3 | 1 2 . Operator 1 | . 1 . Watcher 3 | . 3 . Swarmer 8 | . 5 3 Grunt 7 | . 7 . Subdweller 8 | . . 8 Best Kill Streak 4 | 2 4 3 Combat Bots Only 3 | . 3 3 Max Kills in Single Turn 2 | 2 2 1 Gunslinging 1 | . 1 . Exploded . | . . . Melee . | . . . Uniques/NPCs Destroyed . | . . . Combat | -11 -10 -10 -------- Run | Yrd Mat Sub Hostile Shots Fired 115 | . 44 71 Missed 36 | . 18 18 Hits 79 | . 26 53 Projectile 79 | . 26 53 Critical Strikes 1 | . . 1 Damage Taken 1168 | . 288 880 Core 253 | . 75 178 Absorbed by Shields . | . . . Core Remaining (%) 100 | 100 . . Volleys Fired 108 | 9 49 50 Largest 2 | 2 2 2 Hottest 140 | 70 130 140 Shots Fired 178 | 18 96 64 Gun 139 | 18 95 26 Cannon 38 | . . 38 Launcher . | . . . Special 1 | . 1 . Kinetic 33 | 9 . 24 Thermal 145 | 9 96 40 Explosive . | . . . Electromagnetic . | . . . Robot Hit Streak 21 | 3 13 21 Robot Miss Streak 11 | 2 11 1 Penetration Max . | . . . Secondary Targets 2 | . 1 1 Max Gunslinging Chain 1 | . 1 1 Shots Hit Robots 142 | 11 80 51 Core Hits 130 | 6 108 16 Critical Kills . | . . . Critical Parts Destroyed 1 | . . 1 Critical Strikes 2 | 1 . 1 Burn 1 | 1 . . Destroy 1 | . . 1 Melee Attacks 35 | . 1 34 Impact 35 | . 1 34 Slashing . | . . . Piercing . | . . . Sneak Attacks . | . . . Combat Hostiles . | . . . Follow-up Attacks . | . . . Damage Inflicted 2386 | 163 1037 1186 Guns 1632 | 163 1026 443 Cannons 661 | . . 661 Explosions . | . . . Melee 82 | . . 82 Ramming 11 | . 11 . Kinetic 517 | 102 . 415 Thermal 1776 | 61 1026 689 Explosive . | . . . Electromagnetic . | . . . Impact 82 | . . 82 Slashing . | . . . Piercing . | . . . Highest Corruption . | . . . Average Corruption . | . . . Corruption Purged . | . . . Corruption Blocked . | . . . Overload Shots . | . . . Overflow Damage 11 | . . 11 Projectiles 11 | . . 11 Explosions . | . . . Melee . | . . . Knockbacks 4 | . . 4 Impact 1 | . . 1 Kinetic 3 | . . 3 Secondary . | . . . Self-Inflicted Damage . | . . . Shots . | . . . Rammed 1 | . 1 . Targets Rammed 1 | . 1 . Kicked . | . . . Crushed . | . . . Highest Temperature 291 | 27 291 . Average Temperature 79 | 8 87 . Received Heat Transfer 231 | . 108 123 Effects 1 | . 1 . Interference 1 | . 1 . Siege Activations . | . . . Martial Activations . | . . . Shielding Activations . | . . . Robots Disrupted . | . . . Combat Hostiles . | . . . Robots Corrupted . | . . . Combat Hostiles . | . . . Parts Fried . | . . . Impact Corruptions . | . . . Robots Melted . | . . . Combat Hostiles . | . . . Parts Melted 1 | 1 . . Heat Transferred 2437 | 259 1285 893 Parts Sabotaged . | . . . Parts Stolen . | . . . Parts Stripped . | . . . Power Chain Reactions . | . . . Alert | -11 -10 -10 ------- Run | Yrd Mat Sub Maximum Alert Level . | . . . Low Security (%) 100 | 100 100 . Level 1 . | . . . Level 2 . | . . . Level 3 . | . . . Level 4 . | . . . Level 5 . | . . . High Security . | . . . Max Security . | . . . Peak Influence 99 | 10 99 . Initial . | . . . Average 20 | 1 22 . Influence Increases 487 | 25 372 90 Destroy 0b10 Robot/C 300 | . 240 60 Destroy 0b10 Robot/NC 80 | 25 55 . Destroy Leader 60 | . 60 . Destroy Structure 2 | . 2 . Lose Combat Pursuer 45 | . 15 30 Influence Decreases 399 | 25 372 2 Time Decay 399 | 25 372 2 Squads Dispatched 2 | . 2 . Investigation 1 | . 1 . Extermination . | . . . Reinforcement 1 | . 1 . Assault . | . . . Garrison . | . . . Intercept . | . . . Searches Triggered . | . . . Construction Impeded . | . . . Haulers Reinforced . | . . . Active Scanning Responses . | . . . Cargo Convoy Interrupts . | . . . Stealth | -11 -10 -10 --------- Run | Yrd Mat Sub Distress Signals 1 | . 1 . Communications Jammed . | . . . Distress Signals . | . . . Times Spotted 38 | . 24 14 Peak Tracking Total 5 | . 5 5 Tactical Retreats 2 | . 1 1 Traps | -11 -10 -10 ------- Run | Yrd Mat Sub Traps Triggered 1 | . 1 . Indirectly . | . . . Trap Hack Attempts . | . . . Triggered . | . . . Disarmed . | . . . Reprogrammed . | . . . Reused . | . . . Traps Extracted . | . . . Installed . | . . . Triggered . | . . . Most Traps Carried 1 | . . 1 Machines | -11 -10 -10 ---------- Run | Yrd Mat Sub Machines Disabled . | . . . Max in Single Turn . | . . . Machines Repaired . | . . . Machines Dismantled . | . . . Machines Sabotaged . | . . . Overloaded Fab Kills . | . . . Hacking | -11 -10 -10 --------- Run | Yrd Mat Sub Machines Accessed 1 | . . 1 Terminals . | . . . Fabricators . | . . . Repair Stations . | . . . Recycling Units . | . . . Scanalyzers . | . . . Garrison Access . | . . . Total Hacks 3 | . . 3 Successful 3 | . . 3 Failed . | . . . Catastrophic . | . . . Database Lockouts . | . . . Manual . | . . . Terminals . | . . . Fabricators . | . . . Repair Stations . | . . . Recycling Units . | . . . Scanalyzers . | . . . Garrison Access . | . . . Terminal Hacks 3 | . . 3 Record 3 | . . 3 Fabricator Hacks . | . . . Repair Station Hacks . | . . . Recycling Unit Hacks . | . . . Scanalyzer . | . . . Garrison Access Hacks . | . . . Unauthorized Hacks . | . . . Terminals . | . . . Fabricators . | . . . Repair Stations . | . . . Recycling Units . | . . . Scanalyzers . | . . . Garrison Access . | . . . Data Cores Recovered . | . . . Used . | . . . Hacking Detections . | . . . Full Trace Events . | . . . Feedback Events . | . . . Feedback Blocked . | . . . Robot Schematics Acquired . | . . . Robots Built . | . . . Authchips . | . . . Time . | . . . Total Robot Build Rating . | . . . Part Schematics Acquired . | . . . Parts Built . | . . . Authchips . | . . . Time . | . . . Total Part Build Rating . | . . . Part Studies Acquired . | . . . Parts Repaired . | . . . Time . | . . . Parts Recycled . | . . . Recycled Matter . | . . . Retrieved Matter . | . . . Retrieved Components . | . . . Parts Scanalyzed . | . . . Part Schematics Acquired . | . . . Parts Damaged . | . . . Bothacking | -11 -10 -10 ------------ Run | Yrd Mat Sub Used RIF Installer . | . . . Robots Hacked . | . . . Non-combat . | . . . Combat . | . . . Robot Hacks Applied . | . . . Relay Couplers Released . | . . . Fabnet Peak Effective % . | . . . Robots Rewired . | . . . Allies Hacked . | . . . Hacks Repelled . | . . . Allies | -11 -10 -10 -------- Run | Yrd Mat Sub Total Allies . | . . . Largest Group . | . . . Highest-Rated Group . | . . . Highest-Rated Ally . | . . . Total Orders . | . . . Ally Attacks . | . . . Total Damage . | . . . Kills . | . . . Allies Corrupted . | . . . Allies Melted . | . . . Intel | -11 -10 -10 ------- Run | Yrd Mat Sub Active Infowar (turns) 3509 | 97 1074 2338 Seismic 3509 | 97 1074 2338 Robot Analysis Total . | . . . Derelict Logs Recovered . | . . . Drone Launches . | . . . Drone Recoveries . | . . . Exploration | -11 -10 -10 ------------- Run | Yrd Mat Sub Turns Passed 6211 | 154 1867 4190 Spaces Moved 2485 | 106 944 1435 Core 8 | 8 . . Treads 90 | . 90 . Legs . | . . . Wheels 2387 | 98 854 1435 Hover . | . . . Flight . | . . . Fastest Speed 50 | 50 80 90 Average Speed 100 | 99 111 92 Slowest Speed 240 | 150 240 110 Overloaded Moves . | . . . Propulsion Burnouts . | . . . Robots Hopped . | . . . Potential Cave-ins . | . . . Cave-ins Triggered . | . . . Exploration Rate (%) 47 | 3 86 54 Regions Visited 2 Branch Regions 1 Pre-discovered Areas . | . . . Known Exits Taken . | . . . Unknown Exits Taken 2 | 1 1 . Scrap Searched 7 | . . 7 Spaces Dug 5 | . 2 3 Terrain Destroyed 8 | . 2 6 Melee 1 | . 1 . Projectile 7 | . 1 6 AOE . | . . . Terrain Rammed . | . . . Walls Destroyed . | . . . Machines Disabled . | . . . Actions | -11 -10 -10 --------- Run | Yrd Mat Sub Total 5944 | 135 1641 4168 Wait 3160 | 4 559 2597 Move 2483 | 105 943 1435 Hop . | . . . Pick Up 36 | 9 18 9 Fast Attach 19 | 7 5 7 Attach 1 | . . 1 Detach 3 | . 1 2 Swap 62 | . 47 15 Drop 33 | 1 17 15 Fire 108 | 9 49 50 Melee 35 | . 1 34 Ram . | . . . Kick . | . . . Crush 1 | . 1 . Escape Stasis . | . . . Rewire . | . . . Trap . | . . . Miscellaneous 3 | . . 3 Route ------- -11/Scrapyard -10/Materials (discovered 4 exits: [*Mat x3] / *Sub) -10/Subcaves (discovered 2 exits: [*Mat x2]) History --------- Turn | Location | Event 44 | -11/Scrapyard | Discovered new exit (range 15) 155 | -11/Scrapyard | Entered Materials 315 | -10/Materials | Build established: Mutant 546 | -10/Materials | Discovered new exit (range 8) 1370 | -10/Materials | Discovered new exit (range 6) 1628 | -10/Materials | Discovered new exit (range 8) 2010 | -10/Materials | Discovered new exit (range 10) 2022 | -10/Materials | Entered Subcaves 2023 | -10/Subcaves | Approached by a straggling Scientist 2055 | -10/Subcaves | Shifting Twisted Machinery released Battle Rifle 2070 | -10/Subcaves | Shifting Twisted Machinery released Battle Cannon 2081 | -10/Subcaves | A swath of the cavern ceiling suddenly collapsed 4219 | -10/Subcaves | Shifting Twisted Machinery released Sub. Shrapnel Launcher 4290 | -10/Subcaves | Shifting Twisted Machinery released Sub. Machine Gun 4306 | -10/Subcaves | A swath of the cavern ceiling suddenly collapsed 5202 | -10/Subcaves | Visited Clippyterm 5204 | -10/Subcaves | Learned Research machine intel 5263 | -10/Subcaves | Disturbed a concealed Subdweller 5268 | -10/Subcaves | Core integrity fell below 50% 5284 | -10/Subcaves | Core integrity fell below 20% 5515 | -10/Subcaves | Disturbed a concealed Subdweller 5664 | -10/Subcaves | Discovered new exit (range 5) 5684 | -10/Subcaves | Discovered new exit (range 6) 6204 | -10/Subcaves | Ambushed by Subdweller buried in earth 6212 | -10/Subcaves | Destroyed by Autobeam Turret with Autobeam Last Messages --------------- 06019_ Subatomizers dissect the Sub. Power Source. 06154_ T9-MZG(R) destroyed. 06161_ Arm. Wheel destroyed. 06170_ S-10 Pest destroyed. 06173_ Sub. Laser shoots sparks and powers down. 06176_ Lgt. Ion Engine fries itself beyond repair. 06180_ Flight Unit fries itself beyond repair. 06180_ S-10 Pest destroyed. 06184_ Lgt. Assault Rifle fries itself beyond repair. 06184_ Destroyed Lgt. Ion Engine. 06184_ S-10 Pest destroyed. 06186_ Acquired 9 matter. 06187_ Acquired 1 matter. 06188_ Flight Unit fries itself beyond repair. 06192_ Lgt. Ion Engine fries itself beyond repair. 06205_ 33-3RF(R): "ARGHSUB!" Map ----- +----------------------------------------------------+ | ?????????????????????????????????????????????????? | | ?????????????????????????????????????????????????? | | ?????????????????????????????????????????????????? | | ?????????????????????????????????????????????????? | | ?????????????????????????????????????????????????? | | ?????????????????????????????????????????????????? | | ?????????????????????????????????????????????????? | | ?????????????????????????????????????????????????? | | ?????????????????????????????????????????????????? | | ?????????????????????????????????????????????????? | | ?????????????????????????????????????????????????? | | ?????????????????????????????????????????????????? | | ?????????????????????????????????????????????????? | | ?????????????????????????????????????????????????? | | ?????????????????????????????????????????????????? | | ?????????????????????????????????????????????????? | | ?????????????????????????????????????????????????? | | ?????????????????????????????????????????????????? | | ####?????????????????????????????????????????????? | | ##?????????????#######????????????????????????? | | ##???????????## ##???????????????????????? | | ##????????### "##??????????????????????? | | ##??????## "" #????#?????????????????? | | ## ####??## ######? " #???????????????? | | #### #### % #### " &#???????????????? | | #??## # "##@# !&= #???????????????? | | #???## % %&%& "???????????????? | | ##????# % <"& #??????????????? | | #?????## ## # ; # < #?????????????? | | #??????####### %######### #?????????????? | | #???????# % ##??????? #???????????? | | #???##### #[# ###????? ####### ???????????? | | ##?## ## ### %#????? % ???????? ???????????? | | ### # ### %##???? % ????????????????????? | | #"#" %#????? ???????????????????? | | " " """"" #?????t ???????????????????? | | " """"#""##" ##?????" ???????????????????? | | "" # """##### #### #??????""""??????????????????? | | #### " ##??###???##???????##???????????????????? | | ???# " #??????????????????????????????????????? | | ???## " #??????????????????????????????????????? | | ????## ##??????????????????????????????????????? | | ????## ##???????????????????????????????????????? | | ##### #????????????????????????????????????????? | | " ## ###??????????????????????????????????????? | | " [[ #??????????????????????????????????????? | | " #??????????????????????????????????????? | | #"# #??????????????????????????????????????? | | #?## ##??????????????????????????????????????? | | ### ####???????????????????????????????????????? | +----------------------------------------------------+ Best States ------------- Heat Dissipation 35 Energy Generation 14 Energy Capacity 280 Matter Stores 300 Matter Capacity 300 Sight Range 16 Terrain Scan Density 10 Armor Coverage 800 Utility Shielding 33 Evasion (%) 44 Recoil Reduction 2 Item Schematics ----------------- None Robot Schematics ------------------ None Fabricated ------------ Nothing Repaired ---------- Nothing Studied --------- None Alien Tech Used ----------------- None Achievements -------------- None Challenges ------------ None Game ------ Seed ShadingTachyonCapacitor Manual? 0 Play Time 00:41:55 Cumulative 778.1 hours Start 2026.07.26 @ 20:17:28 End 2026.07.26 @ 22:09:23 Sessions 2 Manual Loads 0 Difficulty Rogue Special Mode None Game No. 274 Rogue 270 Adventurer 4 Explorer 0 Win Type - Total 21 Types 9/2/6/0/0/0/2/2/0/0 Lore% 88 Gallery% 76 Achievement% 61 Wizard Run 0 Options --------- Layout 1 ASCII 0 Keyboard 0 Movement Arrows Keybinds 0 Fullscreen 1 Font 40/SmallcapsGlow Map View 50x40 Zoom Use 0% Tactical HUD 1 Map Filters NONE Filters NONE Steam 1 RUN: 74542491-1315-4a7b-8d82-4b16e2ec5afd